Cogmind - Beta 10.2 @@@ ROGUE MODE // 2020.11.08 @ 00:59:31 // Halloween2020/ForbiddenLore Player: Ty Piggbottom Result: Destroyed by as-76139 with Assembled Rifle Performance ------------- Evolutions (0) 0 Regions Visited (2) 400 Robots Destroyed (38) 190 Value Destroyed (595) 595 Prototype IDs (3) 60 Alien Tech Used (0) 0 Bonus (0) 0 TOTAL SCORE: 1245 Bonus ------- None Cogmind --------- Core Integrity 0/250 Matter 300/300 Energy 100/100 System Corruption 0% Temperature Cool (0) Movement Core (150) Ox2 Location -10/Mines Parts ------- > --- POWER (1) -------- (None) > --- PROPULSION (2) --- (None) > --- UTILITY (2) ------ Small Storage Unit Signal Interpreter > --- WEAPON (2) ------- Grenade Launcher Hammer > --- INVENTORY (6) ---- Compact Wheel Weapon Shielding Hacking Suite Hacking Suite Light Assault Rifle Datajack Peak State ------------ > --- POWER ------------ Light Nuclear Core > --- PROPULSION ------- Compact Wheel Compact Wheel > --- UTILITY ---------- Small Storage Unit Signal Interpreter > --- WEAPON ----------- Light Assault Rifle Hammer > --- INVENTORY -------- Light Treads Light Treads Signal Interpreter Hacking Suite Hacking Suite Datajack [Rating: 10] Favorites ----------- Power Light Nuclear Core Engine Ion Engine Power Core Light Nuclear Core Propulsion Hover Unit Treads Light Treads Wheel Compact Wheel Hover Unit Hover Unit Utility Small Storage Unit Storage Small Storage Unit Processor Signal Interpreter Weapon Light Assault Rifle Energy Gun Medium Laser Energy Cannon Beam Cannon Ballistic Gun Light Assault Rifle Launcher Grenade Launcher Impact Weapon Hammer Build | -11 -10 -10 ------- Run | Scr Mat Min Slots Evolved . | . . . Power . | . . . Propulsion . | . . . Utility . | . . . Weapon . | . . . Parts Attached 54 | 12 35 7 Power 6 | 2 4 . Engine 5 | 2 3 . Core 1 | . 1 . Reactor . | . . . Propulsion 15 | 3 12 . Treads 2 | . 2 . Leg . | . . . Wheel 9 | 3 6 . Hover 4 | . 4 . Flight . | . . . Utility 5 | 2 3 . Device . | . . . Storage 4 | 2 2 . Processor 1 | . 1 . Hackware . | . . . Protection . | . . . Artifact . | . . . Weapon 28 | 5 16 7 Energy Gun 9 | 5 4 . Energy Cannon 1 | . 1 . Ballistic Gun 10 | . 7 3 Ballistic Cannon . | . . . Launcher 3 | . 1 2 Special Weapon . | . . . Impact Weapon 5 | . 3 2 Slashing Weapon . | . . . Piercing Weapon . | . . . Special Melee Weapon . | . . . Unidentified Prototypes . | . . . Parts Lost 10 | . 7 3 Power 2 | . 1 1 Propulsion 4 | . 2 2 Utility . | . . . Weapon 4 | . 4 . Highest Loss Streak 2 | . 2 2 Average Slot Usage (%) 91 | . 93 87 Engine 4 | . 5 . Core 9 | . 8 14 Treads 2 | . 2 . Wheel 11 | . 14 . Hover 10 | . 8 16 Storage 15 | . 16 14 Processor 12 | . 11 14 Energy Gun 4 | . 5 . Energy Cannon 1 | . . 3 Ballistic Gun 12 | . 11 14 Launcher 3 | . 1 6 Impact Weapon 3 | . 4 2 Naked Turns . | . . . Heaviest Build 45 | 17 45 15 Greatest Support 40 | 32 40 12 Greatest Overweight (x) 3 | . 3 2 Average Overweight (x) . | . . 1 Largest Inventory Capacity 14 | 8 14 6 Average Capacity 7 | 5 8 6 Most Carried 12 | 5 12 6 Average Carried 6 | 2 7 5 Final Capacity 8 | 8 6 6 Final Carried 6 | 5 5 6 Class Distribution -------------------- 81% | Scavenger-Mutant 18% | Mutant Dominant Class ---------------- Scavenger-Mutant | -10/Materials Scavenger-Mutant | -10/Mines Resources | -11 -10 -10 ----------- Run | Scr Mat Min Matter Collected 899 | 227 516 156 Remotely . | . . . Salvage Created 1528 | 95 1261 172 Parts 63 | 3 53 7 Haulers Intercepted 2 | . 2 . Recyclers Shooed 10 | . 9 1 Parts Field Recycled . | . . . Retrieved Matter . | . . . Parts Self-Destructed . | . . . Prevented . | . . . Kills | -11 -10 -10 ------- Run | Scr Mat Min Combat Hostiles Destroyed 22 | . 14 8 Melee 3 | . 1 2 Guns 13 | . 13 . Cannons 1 | . . 1 AOE 4 | . . 4 Classes Destroyed 9 | 2 6 1 Worker 1 | . 1 . Tunneler 1 | 1 . . Hauler 2 | . 2 . Recycler 9 | 1 7 1 Operator 2 | . 2 . Watcher 3 | . 3 . Swarmer 11 | . 5 6 Grunt 9 | . 9 . Assembled 2 | . . 2 Best Kill Streak 6 | 2 6 3 Combat Bots Only 3 | . 3 3 Max Kills in Single Turn 2 | 1 1 2 Gunslinging . | . . . Exploded 2 | . . 2 Melee 1 | . 1 1 Uniques/NPCs Destroyed . | . . . Combat | -11 -10 -10 -------- Run | Scr Mat Min Damage Taken 1022 | . 772 250 Core 256 | . 191 65 Absorbed by Shields . | . . . Core Remaining (%) 100 | 100 . . Volleys Fired 148 | 5 126 17 Largest 2 | 2 2 2 Hottest 90 | 90 90 60 Shots Fired 229 | 10 194 25 Gun 216 | 10 189 17 Cannon 4 | . . 4 Launcher 9 | . 5 4 Special . | . . . Kinetic 99 | . 82 17 Thermal 56 | 5 47 4 Explosive 9 | . 5 4 Electromagnetic 65 | 5 60 . Robot Hit Streak 27 | 4 27 4 Robot Miss Streak 4 | 1 4 2 Penetration Max . | . . . Secondary Targets 1 | . 1 . Max Gunslinging Chain 1 | . 1 . Shots Hit Robots 160 | 7 129 24 Core Hits 66 | 3 52 11 Critical Hits . | . . . Critical Kills . | . . . Critical Parts Destroyed . | . . . Melee Attacks 20 | . 4 16 Impact 20 | . 4 16 Slashing . | . . . Piercing . | . . . Sneak Attacks 1 | . . 1 Combat Hostiles . | . . . Follow-up Attacks . | . . . Damage Inflicted 2254 | 91 1559 604 Guns 1529 | 91 1356 82 Cannons 52 | . . 52 Explosions 455 | . 189 266 Melee 218 | . 14 204 Ramming . | . . . Kinetic 527 | . 445 82 Thermal 579 | 37 490 52 Explosive 379 | . 113 266 Electromagnetic 551 | 54 497 . Impact 218 | . 14 204 Slashing . | . . . Piercing . | . . . Highest Corruption . | . . . Average Corruption . | . . . Corruption Purged . | . . . Overload Shots . | . . . Overflow Damage 70 | . . 70 Projectiles . | . . . Explosions 21 | . . 21 Melee 49 | . . 49 Knockbacks . | . . . Impact . | . . . Kinetic . | . . . Secondary . | . . . Self-Inflicted Damage 79 | . 34 45 Shots 3 | . 1 2 Rammed . | . . . Targets Rammed . | . . . Kicked . | . . . Crushed . | . . . Highest Temperature 286 | 120 286 112 Average Temperature 83 | 54 91 30 Received Heat Transfer 291 | . 291 . Effects 3 | . 3 . Interference 3 | . 3 . Siege Activations . | . . . Robots Corrupted . | . . . Combat Hostiles . | . . . Parts Fried 3 | . 1 2 Impact Corruptions 3 | . . 3 Robots Melted . | . . . Combat Hostiles . | . . . Parts Melted 2 | . 2 . Heat Transferred 1543 | 111 1321 111 Parts Sabotaged . | . . . Parts Stolen . | . . . Parts Stripped . | . . . Power Chain Reactions 2 | . 2 . Missiles Intercepted . | . . . Alert | -11 -10 -10 ------- Run | Scr Mat Min Peak Influence 304 | 10 304 135 Initial 6 | . 6 . Average 100 | 2 106 96 Maximum Alert Level 1 | . 1 . Low Security (%) 89 | 100 86 100 Level 1 10 | . 13 . Level 2 . | . . . Level 3 . | . . . Level 4 . | . . . Level 5 . | . . . High Security . | . . . Max Security . | . . . Squads Dispatched 4 | . 4 . Investigation 2 | . 2 . Extermination . | . . . Reinforcement 2 | . 2 . Assault . | . . . Garrison . | . . . Intercept . | . . . Construction Impeded . | . . . Haulers Reinforced . | . . . Stealth | -11 -10 -10 --------- Run | Scr Mat Min Distress Signals 1 | . 1 . Communications Jammed . | . . . Distress Signals . | . . . Times Spotted 35 | . 22 13 Peak Tracking Total 7 | . 5 7 Tactical Retreats 2 | . 2 . Traps | -11 -10 -10 ------- Run | Scr Mat Min Traps Triggered 2 | . 2 . Indirectly . | . . . Trap Hack Attempts . | . . . Triggered . | . . . Disarmed 6 | . 6 . Reprogrammed . | . . . Reused . | . . . Traps Extracted . | . . . Installed . | . . . Triggered . | . . . Machines | -11 -10 -10 ---------- Run | Scr Mat Min Machines Disabled 2 | . 2 . Max in Single Turn 2 | . 2 . Machines Sabotaged . | . . . Garrisons Compromised . | . . . Overloaded Fab Kills . | . . . Fab Network Shutdowns . | . . . Hacking | -11 -10 -10 --------- Run | Scr Mat Min Machines Accessed 8 | . 8 . Terminals 5 | . 5 . Fabricators . | . . . Repair Stations 1 | . 1 . Recycling Units 2 | . 2 . Scanalyzers . | . . . Garrison Access . | . . . Total Hacks 26 | . 26 . Successful 18 | . 18 . Failed 8 | . 8 . Catastrophic . | . . . Database Lockouts . | . . . Manual . | . . . Terminals 19 | . 19 . Fabricators . | . . . Repair Stations 3 | . 3 . Recycling Units 4 | . 4 . Scanalyzers . | . . . Garrison Access . | . . . Terminal Hacks 12 | . 12 . Record 3 | . 3 . Robot Analysis 1 | . 1 . Prototype ID Bank 2 | . 2 . Emergency Access Points 1 | . 1 . Locate Traps 1 | . 1 . Disarm Traps 1 | . 1 . Dispatch Records 1 | . 1 . Hauler Manifests 1 | . 1 . Zone Layout 1 | . 1 . Fabricator Hacks . | . . . Repair Station Hacks 2 | . 2 . Scan Component 1 | . 1 . Repair 1 | . 1 . Recycling Unit Hacks 4 | . 4 . Report Inventory 3 | . 3 . Retrieve Components 1 | . 1 . Scanalyzer . | . . . Garrison Access Hacks . | . . . Unauthorized Hacks . | . . . Terminals . | . . . Fabricators . | . . . Repair Stations . | . . . Recycling Units . | . . . Scanalyzers . | . . . Garrison Access . | . . . Data Cores Recovered . | . . . Used . | . . . Hacking Detections 6 | . 6 . Full Trace Events 1 | . 1 . Feedback Events . | . . . Feedback Blocked . | . . . Robot Schematics Acquired . | . . . Robots Built . | . . . Matter . | . . . Time . | . . . Total Robot Build Rating . | . . . Part Schematics Acquired . | . . . Parts Built . | . . . Matter . | . . . Time . | . . . Total Part Build Rating . | . . . Parts Repaired 1 | . 1 . Time 26 | . 26 . Parts Recycled . | . . . Recycled Matter . | . . . Retrieved Matter . | . . . Retrieved Components 9 | . 9 . Parts Scanalyzed . | . . . Part Schematics Acquired . | . . . Parts Damaged . | . . . Bothacking | -11 -10 -10 ------------ Run | Scr Mat Min Used RIF Installer . | . . . Robots Hacked . | . . . Non-combat . | . . . Combat . | . . . Robot Hacks Applied . | . . . Relay Couplers Released . | . . . Robots Rewired . | . . . Allies Hacked . | . . . Hacks Repelled . | . . . Allies | -11 -10 -10 -------- Run | Scr Mat Min Total Allies 3 | . . 3 Largest Group 3 | . . 3 Highest-Rated Group 40 | . . 40 Highest-Rated Ally 16 | . . 16 Total Orders 1 | . . 1 GUARD 1 | . . 1 Ally Attacks 12 | . . 12 Total Damage 120 | . . 120 Kills 2 | . . 2 Allies Corrupted . | . . . Allies Melted . | . . . Intel | -11 -10 -10 ------- Run | Scr Mat Min Robot Analysis Total 1 | . 1 . Derelict Logs Recovered 1 | . . 1 Drone Launches . | . . . Drone Recoveries . | . . . Exploration | -11 -10 -10 ------------- Run | Scr Mat Min Turns Passed 2224 | 83 1654 487 Spaces Moved 1592 | 49 1286 257 Core 2 | 2 . . Treads 98 | . 98 . Legs . | . . . Wheels 614 | 47 567 . Hover 878 | . 621 257 Flight . | . . . Fastest Speed 50 | 50 56 116 Average Speed 100 | 96 91 143 Slowest Speed 180 | 100 160 180 Overloaded Moves . | . . . Propulsion Burnouts . | . . . Robots Hopped . | . . . Cave-ins Triggered . | . . . Exploration Rate (%) 48 | 4 98 44 Regions Visited 2 Branch Regions 1 Pre-discovered Areas 1 | . . 1 Known Exits Taken 1 | . 1 . Unknown Exits Taken 1 | 1 . . Scrap Searched 1 | . . 1 Spaces Dug 2 | . 2 . Terrain Destroyed 71 | . 42 29 Melee 2 | . 2 . Projectile . | . . . AOE 69 | . 40 29 Terrain Rammed . | . . . Walls Destroyed . | . . . Machines Disabled . | . . . Actions | -11 -10 -10 --------- Run | Scr Mat Min Total 1980 | 68 1585 327 Wait 104 | . 80 24 Move 1590 | 48 1285 257 Hop . | . . . Pick Up 26 | 3 21 2 Fast Attach 22 | 7 13 2 Attach 8 | . 8 . Detach 4 | . 3 1 Swap 24 | 5 14 5 Drop 34 | . 31 3 Fire 148 | 5 126 17 Melee 20 | . 4 16 Ram . | . . . Kick . | . . . Crush . | . . . Escape Stasis . | . . . Rewire . | . . . Trap . | . . . Miscellaneous . | . . . Route ------- -11/Scrapyard -10/Materials (discovered 5 exits: *Mat x3 / *Min x2) -10/Mines (discovered 1 exit: *Mat) History --------- Turn | Location | Event 27 | -11/Scrapyard | Discovered new exit (range 15) 84 | -11/Scrapyard | Entered Materials 161 | -10/Materials | Discovered new exit (range 13) 313 | -10/Materials | Build established: Mutant 455 | -10/Materials | Discovered new exit (range 13) 527 | -10/Materials | Identified exit to Materials 546 | -10/Materials | Discovered new exit (range 16) 730 | -10/Materials | Core integrity fell below 50% 784 | -10/Materials | Build established: Scavenger-Mutant 865 | -10/Materials | Discovered new exit (range 16) 1305 | -10/Materials | Identified exit to Mines 1395 | -10/Materials | Discovered exit to Materials (range 16) 1711 | -10/Materials | Repaired Hover Unit 1738 | -10/Materials | Entered Mines 1805 | -10/Mines | Discovered exit to Materials (range 15) 1813 | -10/Mines | Core integrity fell below 20% 1859 | -10/Mines | Learned location of Zion (-7) 1949 | -10/Mines | Assisted by bots powering up and referring to "LRC-V3" 2176 | -10/Mines | Assembled infested the area 2225 | -10/Mines | Destroyed by as-76139 with Assembled Rifle Last Messages --------------- 02081_ Acquired 13 matter. 02084_ Dropped Lgt. Assault Rifle. 02085_ Acquired Weapon Shielding. 02117_ K-01 Serf collects debris. 02176_ ALERT: Infestation in the mines, dispatching Demolisher response squad. 02200_ Mercenary 1a destroyed. 02201_ as-88278 destroyed. 02208_ K-01 Serf cleans the Plasma Injector. 02213_ Acquired 10 matter. 02214_ as-18197 destroyed. 02215_ Trooper 1a destroyed. 02219_ as-01407 sneak attacks. 02219_ U-05 Engineer destroyed. 02219_ K-01 Serf cleans the Plasma Injector. 02223_ as-29877 destroyed. 02223_ as-01407 destroyed. 02223_ Lgt. Nuclear Core destroyed. 02223_ Destroyed Lgt. Nuclear Core. 02223_ Hover Unit destroyed. 02223_ Destroyed Hover Unit. Map ----- +----------------------------------------------------+ | ??# ?? # #???? #?????????????????????? | | ??#????### ##### ##?????????????????????? | | ?????????# # ####??????????????????????? | | ?????????########## ##???##?????????????????????? | | ??????????????????# #??? ##????????????????????? | | ??????????????????# #?? ##### ??????????????? | | ??????#######?????# ### ?????????????? | | ????### #????## # ?????????????? | | ???## ######### #???????????????????? | | ???# #????????????????????? | | ???# ##????????????????????? | | ???# ######## # ###?????????????????????? | | ??## ######?# #####???????????????????????? | | ??# #??????# #???????????????????????????? | | ??# """ #??????# #???????????????????????????? | | ??# """ #??????#[#???????????????????????????? | | ??## """ ??????# #???????????????????????????? | | ???# ??????#%#???????????????????????????? | | ??## ##?????# #???????###?????????????????? | | ?## ##??????# #???????#! ?????????????????? | | ?# ##???????# ###?????#=#?????????????????? | | ?# #??#####??# #?????#%#?????????????????? | | ?## #??## ###### #?????#*#?????????????????? | | ??# #### #### #######!#?????????????????? | | ?# ## ## %####??????????????? | | ?# ### @%a%[=% ###????????????? | | ?## #?## """ a!%= #????????????? | | ??## ##??# """ ## ## ?????? | | ???## ##???# """ ########### ?????? | | ????####????## k ##??????????# ???? | | ?????????????########????????????## #???? | | ???????????????????????????????????#### ##???? | | ????????????????????????????????????????####????? | | ????????????????????????????????????????????????? | | | | | | | | | | | | | | | | | | | | | | | | | | | | | | | | | +----------------------------------------------------+ Best States ------------- Heat Dissipation 25 Energy Generation 14 Energy Capacity 250 Matter Stores 300 Matter Capacity 300 Sight Range 16 Terrain Scan Density 10 Evasion (%) 53 Recoil Reduction 2 Item Schematics ----------------- None Robot Schematics ------------------ None Fabricated ------------ Nothing Alien Tech Used ----------------- None Achievements -------------- None Challenges ------------ None Game ------ Seed BottomlessShrapnelBay Manual? 0 Play Time 00:38:48 Cumulative 138.6 hours Start 2020.11.08 @ 00:11:29 End 2020.11.08 @ 00:59:31 Sessions 3 Manual Loads 0 Difficulty Rogue Special Mode Halloween2020/ForbiddenLore Game No. 53 Rogue 53 Adventurer 0 Explorer 0 Win Type - Total 0 Types 0/0/0/0/0/0/0/0/0 Lore% 9 Gallery% 21 Achievement% 19 Wizard Run 0 Options --------- ASCII 0 Keyboard 1 Movement Vi Keybinds 0 Fullscreen 1 Font 12/Terminus Map View 83x54 Tactical HUD 1 Map Filters NONE Filters NONE Steam 1 RUN: bf001732-ff9d-49aa-8329-7d5c4469cfa4